[Event "2. Itzehoer Schach Open"]
[Site "Itzehoe, Germany"]
[Date "2023.05.01"]
[Round "5.9"]
[White "Wibmer, Michael"]
[Black "Neuendorf, Max"]
[Result "1/2-1/2"]
[TimeControl "90 min / 40 Züge + 30 min + 30 Sek pro Zug"]
[WhiteElo "1675"]
[BlackElo "2000"]

1. e4 {[%clk 01:30:59]} {[%emt 00:00:01]} c5 {[%clk 01:26:55]} {[%emt
00:03:55]} 2. Nf3 {[%clk 01:31:16]} {[%emt 00:00:22]} Nc6 {[%clk 01:26:43]}
{[%emt 00:00:43]} 3. d4 {[%clk 01:31:25]} {[%emt 00:00:21]} cxd4 {[%clk
01:26:58]} {[%emt 00:00:15]} 4. Nxd4 {[%clk 01:31:46]} {[%emt 00:00:09]} e5
{[%clk 01:27:18]} {[%emt 00:00:09]} 5. Nb5 {[%clk 01:32:09]} {[%emt 00:00:07]}
d6 {[%clk 01:27:43]} {[%emt 00:00:06]} 6. N1c3 {[%clk 01:32:07]} {[%emt
00:00:32]} a6 {[%clk 01:27:23]} {[%emt 00:00:49]} 7. Na3 {[%clk 01:32:22]}
{[%emt 00:00:15]} Be7 {[%clk 01:27:36]} {[%emt 00:00:17]} 8. g3 {[%clk
01:24:17]} {[%emt 00:08:33]} Nf6 {[%clk 01:20:02]} {[%emt 00:08:06]} 9. Bg2
{[%clk 01:22:28]} {[%emt 00:02:18]} Bg4 {[%clk 01:19:29]} {[%emt 00:01:03]} 10.
Qd3 {[%clk 01:08:31]} {[%emt 00:14:28]} Rc8 {[%clk 01:08:11]} {[%emt 00:11:48]}
11. Be3 {[%clk 01:05:51]} {[%emt 00:03:10]} O-O {[%clk 01:02:20]} {[%emt
00:06:21]} 12. O-O {[%clk 00:58:44]} {[%emt 00:07:38]} b5 {[%clk 00:56:37]}
{[%emt 00:06:13]} 13. Nd5 {[%clk 00:56:16]} {[%emt 00:02:57]} Nxd5 {[%clk
00:55:03]} {[%emt 00:02:04]} 14. exd5 {[%clk 00:52:19]} {[%emt 00:04:28]} Nb8
{[%clk 00:54:07]} {[%emt 00:01:26]} 15. c3 {[%clk 00:50:00]} {[%emt 00:02:47]}
Nd7 {[%clk 00:47:40]} {[%emt 00:06:57]} 16. Nc2 {[%clk 00:47:45]} {[%emt
00:02:47]} Bg5 {[%clk 00:36:19]} {[%emt 00:11:50]} 17. Nb4 {[%clk 00:39:15]}
{[%emt 00:09:00]} Nc5 {[%clk 00:29:43]} {[%emt 00:07:06]} 18. Qd2 {[%clk
00:39:18]} {[%emt 00:00:26]} Bxe3 {[%clk 00:29:23]} {[%emt 00:00:52]} 19. Qxe3
{[%clk 00:38:57]} {[%emt 00:00:50]} Bd7 {[%clk 00:28:26]} {[%emt 00:01:27]} 20.
Rad1 {[%clk 00:35:44]} {[%emt 00:03:43]} Kh8 {[%clk 00:24:03]} {[%emt
00:04:54]} 21. Nc6 {[%clk 00:31:32]} {[%emt 00:04:42]} Bxc6 {[%clk 00:20:48]}
{[%emt 00:03:45]} 22. dxc6 {[%clk 00:31:50]} {[%emt 00:00:11]} f5 {[%clk
00:20:59]} {[%emt 00:00:19]} 23. Qd2 {[%clk 00:20:54]} {[%emt 00:11:25]} Rf6
{[%clk 00:21:01]} {[%emt 00:00:29]} 24. Rfe1 {[%clk 00:20:28]} {[%emt
00:00:56]} Qc7 {[%clk 00:20:04]} {[%emt 00:01:27]} 25. Bd5 {[%clk 00:17:14]}
{[%emt 00:03:44]} Ne6 {[%clk 00:14:13]} {[%emt 00:06:21]} 26. Bxe6 {[%clk
00:11:34]} {[%emt 00:06:10]} Rxe6 {[%clk 00:14:41]} {[%emt 00:00:02]} 27. Qd5
{[%clk 00:11:38]} {[%emt 00:00:25]} Rf6 {[%clk 00:14:56]} {[%emt 00:00:16]} 28.
Re2 {[%clk 00:10:22]} {[%emt 00:01:45]} h6 {[%clk 00:13:11]} {[%emt 00:02:16]}
29. Red2 {[%clk 00:10:20]} {[%emt 00:00:32]} Qxc6 {[%clk 00:13:22]} {[%emt
00:00:19]} 30. Qxc6 {[%clk 00:09:33]} {[%emt 00:01:18]} Rxc6 {[%clk 00:13:51]}
{[%emt 00:00:02]} 31. Rd5 {[%clk 00:09:14]} {[%emt 00:00:48]} Kg8 {[%clk
00:13:45]} {[%emt 00:00:36]} 32. a4 {[%clk 00:07:56]} {[%emt 00:01:47]} Rb6
{[%clk 00:07:27]} {[%emt 00:06:48]} 33. axb5 {[%clk 00:07:21]} {[%emt
00:01:05]} axb5 {[%clk 00:07:55]} {[%emt 00:00:03]} 34. Ra1 {[%clk 00:07:01]}
{[%emt 00:00:49]} Rf8 {[%clk 00:07:59]} {[%emt 00:00:23]} 35. Ra7 {[%clk
00:05:34]} {[%emt 00:02:00]} Rd8 {[%clk 00:07:40]} {[%emt 00:00:49]} 36. Kf1
{[%clk 00:05:09]} {[%emt 00:00:54]} Kh7 {[%clk 00:04:59]} {[%emt 00:03:12]} 37.
Ra5 {[%clk 00:03:56]} {[%emt 00:01:43]} Rdb8 {[%clk 00:03:57]} {[%emt
00:01:32]} 38. Ra7 {[%clk 00:04:20]} {[%emt 00:00:07]} Rd8 {[%clk 00:03:05]}
{[%emt 00:01:22]} 39. Ra5 {[%clk 00:04:48]} {[%emt 00:00:02]} Rdb8 {[%clk
00:03:19]} {[%emt 00:00:16]} 40. Ra7 {[%clk 00:04:37]} {[%emt 00:00:41]} Rd8
{[%clk 00:01:06]} {[%emt 00:02:41]} 1/2-1/2

[Event "2. Itzehoer Schach Open"]
[Site "Itzehoe, Germany"]
[Date "2023.05.01"]
[Round "5.30"]
[White "Bartels, Jens"]
[Black "Graf, David"]
[Result "0-1"]
[TimeControl "90 min / 40 Züge + 30 min + 30 Sek pro Zug"]
[WhiteElo "1589"]
[BlackElo "1429"]

1. Nf3 {[%clk 01:30:42]} {[%emt 00:00:17]} Nf6 {[%clk 01:30:38]} {[%emt
00:00:23]} 2. c4 {[%clk 01:30:05]} {[%emt 00:01:07]} e6 {[%clk 01:30:37]}
{[%emt 00:00:30]} 3. d4 {[%clk 01:29:53]} {[%emt 00:00:42]} b6 {[%clk
01:30:56]} {[%emt 00:00:12]} 4. Nc3 {[%clk 01:29:12]} {[%emt 00:01:11]} Bb4
{[%clk 01:31:18]} {[%emt 00:00:08]} 5. Bd2 {[%clk 01:27:04]} {[%emt 00:02:38]}
Bb7 {[%clk 01:31:14]} {[%emt 00:00:35]} 6. e3 {[%clk 01:26:26]} {[%emt
00:01:08]} O-O {[%clk 01:31:17]} {[%emt 00:00:28]} 7. Be2 {[%clk 01:24:51]}
{[%emt 00:02:04]} Bxc3 {[%clk 01:28:32]} {[%emt 00:03:15]} 8. Bxc3 {[%clk
01:24:51]} {[%emt 00:00:29]} Ne4 {[%clk 01:28:54]} {[%emt 00:00:07]} 9. O-O
{[%clk 01:21:13]} {[%emt 00:04:09]} Nxc3 {[%clk 01:25:40]} {[%emt 00:03:45]} 10.
bxc3 {[%clk 01:21:17]} {[%emt 00:00:25]} Qf6 {[%clk 01:19:41]} {[%emt
00:06:29]} 11. Qc2 {[%clk 01:19:06]} {[%emt 00:02:40]} d6 {[%clk 01:14:24]}
{[%emt 00:05:49]} 12. e4 {[%clk 01:17:37]} {[%emt 00:01:58]} Nd7 {[%clk
01:13:11]} {[%emt 00:01:43]} 13. Rad1 {[%clk 01:15:05]} {[%emt 00:03:02]} Qf4
{[%clk 01:11:10]} {[%emt 00:02:31]} 14. d5 {[%clk 01:12:34]} {[%emt 00:03:01]}
e5 {[%clk 01:09:25]} {[%emt 00:02:15]} 15. g3 {[%clk 01:09:26]} {[%emt
00:03:38]} Qf6 {[%clk 01:07:55]} {[%emt 00:01:59]} 16. Nh4 {[%clk 01:04:47]}
{[%emt 00:05:10]} Nc5 {[%clk 01:06:54]} {[%emt 00:01:32]} 17. Bg4 {[%clk
01:00:30]} {[%emt 00:04:42]} Qg5 {[%clk 01:04:51]} {[%emt 00:02:38]} 18. Bh3
{[%clk 00:58:01]} {[%emt 00:02:57]} g6 {[%clk 00:56:24]} {[%emt 00:08:58]} 19.
Rde1 {[%clk 00:55:05]} {[%emt 00:03:26]} Qh5 {[%clk 00:53:04]} {[%emt
00:03:50]} 20. f3 {[%clk 00:48:21]} {[%emt 00:07:14]} a5 {[%clk 00:44:19]}
{[%emt 00:09:15]} 21. Rf2 {[%clk 00:48:00]} {[%emt 00:00:51]} Ba6 {[%clk
00:40:48]} {[%emt 00:04:02]} 22. Bf1 {[%clk 00:47:43]} {[%emt 00:00:44]} Bc8
{[%clk 00:39:21]} {[%emt 00:01:59]} 23. Be2 {[%clk 00:47:10]} {[%emt 00:01:03]}
Qg5 {[%clk 00:38:05]} {[%emt 00:01:47]} 24. Bf1 {[%clk 00:45:25]} {[%emt
00:02:15]} Ba6 {[%clk 00:31:08]} {[%emt 00:07:27]} 25. Qd2 {[%clk 00:44:12]}
{[%emt 00:01:43]} Qxd2 {[%clk 00:30:30]} {[%emt 00:01:08]} 26. Rxd2 {[%clk
00:44:21]} Kg7 {[%clk 00:26:27]} {[%emt 00:04:53]} 27. Rf2 {[%clk 00:36:43]}
{[%emt 00:08:07]} f6 {[%clk 00:25:49]} {[%emt 00:01:09]} 28. Ng2 {[%clk
00:32:46]} {[%emt 00:04:26]} f5 {[%clk 00:23:57]} {[%emt 00:02:23]} 29. exf5
{[%clk 00:29:12]} {[%emt 00:04:04]} Rxf5 {[%clk 00:24:00]} {[%emt 00:00:26]} 30.
Ne3 {[%clk 00:28:39]} {[%emt 00:01:03]} Rf7 {[%clk 00:23:29]} {[%emt 00:01:01]}
31. Kg2 {[%clk 00:28:44]} {[%emt 00:00:25]} Raf8 {[%clk 00:23:26]} {[%emt
00:00:33]} 32. Be2 {[%clk 00:28:11]} {[%emt 00:01:02]} Ne4 {[%clk 00:22:07]}
{[%emt 00:01:50]} 33. Rff1 {[%clk 00:28:00]} {[%emt 00:00:41]} Nxc3 {[%clk
00:22:07]} {[%emt 00:00:31]} 34. Bd3 {[%clk 00:27:33]} {[%emt 00:00:56]} Nxa2
{[%clk 00:21:49]} {[%emt 00:00:48]} 35. Nc2 {[%clk 00:27:36]} {[%emt 00:00:27]}
Nc3 {[%clk 00:19:07]} {[%emt 00:03:13]} 36. Na3 {[%clk 00:27:15]} {[%emt
00:00:51]} Nxd5 {[%clk 00:18:20]} {[%emt 00:01:17]} 37. Nb5 {[%clk 00:25:25]}
{[%emt 00:02:20]} Bxb5 {[%clk 00:18:14]} {[%emt 00:00:36]} 38. cxb5 {[%clk
00:25:34]} {[%emt 00:00:22]} Nf6 {[%emt 00:05:21]} 0-1

[Event "2. Itzehoer Schach Open"]
[Site "Itzehoe, Germany"]
[Date "2023.05.01"]
[Round "5.10"]
[White "Fuhrmann, Åke"]
[Black "Wohlrabe, Joerg"]
[Result "1/2-1/2"]
[TimeControl "90 min / 40 Züge + 30 min + 30 Sek pro Zug"]
[WhiteElo "1992"]
[BlackElo "1635"]

1. d4 {[%clk 01:30:57]} {[%emt 00:00:02]} e6 {[%clk 01:30:55]} {[%emt
00:00:06]} 2. c4 {[%clk 01:31:22]} {[%emt 00:00:05]} Nf6 {[%clk 01:31:20]}
{[%emt 00:00:05]} 3. g3 {[%clk 01:31:47]} {[%emt 00:00:04]} Be7 {[%clk
01:31:43]} {[%emt 00:00:07]} 4. Bg2 {[%clk 01:32:11]} {[%emt 00:00:06]} O-O
{[%clk 01:32:04]} {[%emt 00:00:10]} 5. Nc3 {[%clk 01:32:30]} {[%emt 00:00:10]}
c6 {[%clk 01:32:12]} {[%emt 00:00:22]} 6. Nf3 {[%clk 01:32:51]} {[%emt
00:00:09]} d6 {[%clk 01:32:16]} {[%emt 00:00:27]} 7. O-O {[%clk 01:32:49]}
{[%emt 00:00:32]} Nbd7 {[%clk 01:31:51]} {[%emt 00:00:55]} 8. e4 {[%clk
01:32:34]} {[%emt 00:00:45]} e5 {[%clk 01:30:42]} {[%emt 00:01:39]} 9. d5
{[%clk 01:32:18]} {[%emt 00:00:45]} cxd5 {[%clk 01:30:15]} {[%emt 00:00:58]} 10.
cxd5 {[%clk 01:25:04]} {[%emt 00:07:44]} a6 {[%clk 01:30:04]} {[%emt 00:00:40]}
11. h3 {[%clk 01:24:25]} {[%emt 00:01:09]} b5 {[%clk 01:29:41]} {[%emt
00:00:53]} 12. b4 {[%clk 01:22:39]} {[%emt 00:02:17]} Rb8 {[%clk 01:28:10]}
{[%emt 00:02:00]} 13. Be3 {[%clk 01:18:58]} {[%emt 00:04:12]} Nb6 {[%clk
01:27:59]} {[%emt 00:00:40]} 14. Nd2 {[%clk 01:18:29]} {[%emt 00:00:59]} Bd7
{[%clk 01:25:58]} {[%emt 00:02:31]} 15. f4 {[%clk 01:12:19]} {[%emt 00:06:41]}
Rc8 {[%clk 01:21:23]} {[%emt 00:05:05]} 16. Rc1 {[%clk 01:11:08]} {[%emt
00:01:40]} Nc4 {[%clk 01:19:52]} {[%emt 00:02:01]} 17. Nxc4 {[%clk 01:08:57]}
{[%emt 00:02:41]} Rxc4 {[%clk 01:20:13]} {[%emt 00:00:08]} 18. fxe5 {[%clk
01:04:43]} {[%emt 00:04:45]} Ne8 {[%clk 01:20:35]} {[%emt 00:00:08]} 19. exd6
{[%clk 01:01:28]} {[%emt 00:03:46]} Bxd6 {[%clk 01:20:21]} {[%emt 00:00:43]} 20.
Ne2 {[%clk 00:49:00]} {[%emt 00:12:59]} Bxb4 {[%clk 01:16:58]} {[%emt
00:03:52]} 21. Rxc4 {[%clk 00:48:53]} {[%emt 00:00:38]} bxc4 {[%clk 01:17:17]}
{[%emt 00:00:11]} 22. e5 {[%clk 00:47:02]} {[%emt 00:02:21]} Qa5 {[%clk
01:14:11]} {[%emt 00:03:36]} 23. Qc2 {[%clk 00:42:07]} {[%emt 00:05:25]} c3
{[%clk 01:12:45]} {[%emt 00:01:55]} 24. Bd4 {[%clk 00:37:01]} {[%emt 00:05:37]}
Bb5 {[%clk 01:10:12]} {[%emt 00:03:03]} 25. Rc1 {[%clk 00:33:52]} {[%emt
00:03:39]} Ba4 {[%clk 01:08:23]} {[%emt 00:02:19]} 26. Qe4 {[%clk 00:30:54]}
{[%emt 00:03:28]} c2 {[%clk 01:06:49]} {[%emt 00:02:03]} 27. d6 {[%clk
00:30:00]} {[%emt 00:01:25]} Ba3 {[%clk 00:57:43]} {[%emt 00:09:35]} 28. Rf1
{[%clk 00:24:32]} {[%emt 00:05:59]} Qb5 {[%clk 00:50:42]} {[%emt 00:07:31]} 29.
Qe3 {[%clk 00:20:08]} {[%emt 00:04:54]} Bb4 {[%clk 00:38:57]} {[%emt 00:12:13]}
30. Nc3 {[%clk 00:18:37]} {[%emt 00:02:02]} Bxc3 {[%clk 00:37:09]} {[%emt
00:02:18]} 31. Qxc3 {[%clk 00:18:45]} {[%emt 00:00:22]} f6 {[%clk 00:29:03]}
{[%emt 00:08:35]} 32. exf6 {[%clk 00:17:06]} {[%emt 00:02:11]} Nxf6 {[%clk
00:26:51]} {[%emt 00:02:41]} 33. Bxf6 {[%clk 00:12:06]} {[%emt 00:05:30]} gxf6
{[%clk 00:26:55]} {[%emt 00:00:27]} 34. Be4 {[%clk 00:11:21]} {[%emt 00:01:15]}
Qb6+ {[%clk 00:26:55]} {[%emt 00:00:30]} 35. Kh2 {[%clk 00:11:32]} {[%emt
00:00:19]} Qxd6 {[%clk 00:26:53]} {[%emt 00:00:31]} 36. Bxc2 {[%clk 00:10:09]}
{[%emt 00:01:53]} Bxc2 {[%clk 00:26:04]} {[%emt 00:01:19]} 37. Qxc2 {[%clk
00:10:34]} {[%emt 00:00:06]} Rd8 {[%clk 00:25:33]} {[%emt 00:01:01]} 38. Rf2
{[%clk 00:10:54]} {[%emt 00:00:09]} Kg7 {[%clk 00:25:00]} {[%emt 00:01:03]} 39.
Qe4 {[%clk 00:11:13]} {[%emt 00:00:11]} Rd7 {[%clk 00:24:21]} {[%emt 00:01:10]}
40. Qg4+ {[%clk 00:11:32]} {[%emt 00:00:10]} Kf7 {[%clk 00:23:45]} {[%emt
00:01:07]} 41. Qg5 {[%clk 00:11:04]} {[%emt 00:00:58]} Qd4 {[%clk 00:22:54]}
{[%emt 00:01:21]} 42. Qh5+ {[%clk 00:11:17]} {[%emt 00:00:17]} Kg7 {[%clk
00:23:04]} {[%emt 00:00:20]} 43. Re2 {[%clk 00:11:29]} {[%emt 00:00:18]} Rb7
{[%clk 00:19:26]} {[%emt 00:04:08]} 44. Rc2 {[%clk 00:09:54]} {[%emt 00:02:06]}
Rb2 {[%clk 00:19:12]} {[%emt 00:00:43]} 45. Qe2 {[%clk 00:10:17]} {[%emt
00:00:07]} Rxc2 {[%clk 00:18:39]} {[%emt 00:01:02]} 46. Qxc2 {[%clk 00:10:42]}
{[%emt 00:00:06]} 1/2-1/2

[Event "2. Itzehoer Schach Open"]
[Site "Itzehoe, Germany"]
[Date "2023.05.01"]
[Round "5.3"]
[White "Neumann, Frank"]
[Black "Wulf von Moers, Jens"]
[Result "1-0"]
[TimeControl "90 min / 40 Züge + 30 min + 30 Sek pro Zug"]
[WhiteElo "2030"]
[BlackElo "2148"]

1. d4 {[%clk 01:29:41]} {[%emt 00:01:18]} d5 {[%clk 01:29:59]} {[%emt
00:01:02]} 2. Nf3 {[%clk 01:30:03]} {[%emt 00:00:08]} c5 {[%clk 01:29:55]}
{[%emt 00:00:33]} 3. g3 {[%clk 01:30:24]} {[%emt 00:00:10]} Nc6 {[%clk
01:28:35]} {[%emt 00:01:50]} 4. Bg2 {[%clk 01:30:46]} {[%emt 00:00:08]} Nf6
{[%clk 01:28:47]} {[%emt 00:00:18]} 5. O-O {[%clk 01:31:08]} {[%emt 00:00:08]}
e6 {[%clk 01:28:51]} {[%emt 00:00:25]} 6. b3 {[%clk 01:29:04]} {[%emt
00:02:35]} cxd4 {[%clk 01:26:21]} {[%emt 00:03:00]} 7. Nxd4 {[%clk 01:29:18]}
{[%emt 00:00:16]} Bc5 {[%clk 01:26:06]} {[%emt 00:00:44]} 8. Bb2 {[%clk
01:28:25]} {[%emt 00:01:23]} O-O {[%clk 01:25:14]} {[%emt 00:01:22]} 9. Nxc6
{[%clk 01:27:49]} {[%emt 00:01:06]} bxc6 {[%clk 01:25:38]} {[%emt 00:00:07]} 10.
Nd2 {[%clk 01:27:22]} {[%emt 00:00:56]} Re8 {[%clk 01:16:06]} {[%emt 00:10:01]}
11. c4 {[%clk 01:27:19]} {[%emt 00:00:34]} Bb7 {[%clk 01:12:42]} {[%emt
00:03:54]} 12. cxd5 {[%clk 01:24:35]} {[%emt 00:03:14]} cxd5 {[%clk 01:09:52]}
{[%emt 00:03:20]} 13. Nf3 {[%clk 01:22:54]} {[%emt 00:02:12]} Rc8 {[%clk
01:01:52]} {[%emt 00:08:31]} 14. Ne5 {[%clk 01:22:52]} {[%emt 00:00:31]} Qb6
{[%clk 00:57:58]} {[%emt 00:04:23]} 15. e3 {[%clk 01:10:31]} {[%emt 00:12:51]}
Ba6 {[%clk 00:55:44]} {[%emt 00:02:44]} 16. Nd3 {[%clk 01:11:00]} {[%emt
00:00:02]} Bd6 {[%clk 00:53:26]} {[%emt 00:02:47]} 17. Re1 {[%clk 00:56:48]}
{[%emt 00:14:43]} e5 {[%clk 00:46:55]} {[%emt 00:07:01]} 18. Bf1 {[%clk
00:56:01]} {[%emt 00:01:16]} h5 {[%clk 00:34:53]} {[%emt 00:12:33]} 19. a3
{[%clk 00:50:58]} {[%emt 00:05:33]} h4 {[%clk 00:34:14]} {[%emt 00:01:09]} 20.
Rc1 {[%clk 00:47:57]} {[%emt 00:03:31]} Rxc1 {[%clk 00:34:10]} {[%emt
00:00:34]} 21. Nxc1 {[%clk 00:48:17]} {[%emt 00:00:11]} Bxf1 {[%clk 00:34:25]}
{[%emt 00:00:14]} 22. Rxf1 {[%clk 00:48:10]} {[%emt 00:00:37]} h3 {[%clk
00:34:16]} {[%emt 00:00:38]} 23. Qc2 {[%clk 00:44:07]} {[%emt 00:04:33]} Qb7
{[%clk 00:32:18]} {[%emt 00:02:28]} 24. Qf5 {[%clk 00:42:55]} {[%emt 00:01:43]}
Qc6 {[%clk 00:27:11]} {[%emt 00:05:37]} 25. b4 {[%clk 00:31:51]} {[%emt
00:11:35]} d4 {[%clk 00:08:20]} {[%emt 00:19:21]} 26. Qxh3 {[%clk 00:31:55]}
{[%emt 00:00:25]} Qc2 {[%clk 00:08:47]} {[%emt 00:00:03]} 27. Ba1 {[%clk
00:25:32]} {[%emt 00:06:54]} Qb1 {[%clk 00:08:11]} {[%emt 00:01:05]} 28. Ne2
{[%clk 00:21:54]} {[%emt 00:04:09]} Qa2 {[%clk 00:08:27]} {[%emt 00:00:13]} 29.
Nxd4 {[%clk 00:21:20]} {[%emt 00:01:05]} exd4 {[%clk 00:08:49]} {[%emt
00:00:08]} 30. Bxd4 {[%clk 00:21:24]} {[%emt 00:00:26]} Qxa3 {[%clk 00:07:36]}
{[%emt 00:01:43]} 31. Ra1 {[%clk 00:19:15]} {[%emt 00:02:38]} Qxb4 {[%clk
00:07:34]} {[%emt 00:00:34]} 32. Bxf6 {[%clk 00:19:22]} {[%emt 00:00:23]} gxf6
{[%clk 00:07:28]} {[%emt 00:00:36]} 33. Rxa7 {[%clk 00:15:49]} {[%emt
00:04:04]} Qb1+ {[%clk 00:05:11]} {[%emt 00:02:46]} 34. Qf1 {[%clk 00:15:41]}
{[%emt 00:00:38]} Qc2 {[%clk 00:05:04]} {[%emt 00:00:34]} 35. Qb5 {[%clk
00:09:18]} {[%emt 00:06:56]} 1-0

[Event "2. Itzehoer Schach Open"]
[Site "Itzehoe, Germany"]
[Date "2023.05.01"]
[Round "5.8"]
[White "Trzcielinski, Jens"]
[Black "Martin, Dennis"]
[Result "1/2-1/2"]
[TimeControl "90 min / 40 Züge + 30 min + 30 Sek pro Zug"]
[WhiteElo "1693"]
[BlackElo "2012"]

1. e4 {[%clk 01:19:05]} {[%emt 00:11:53]} c6 {[%clk 01:28:21]} {[%emt
00:02:40]} 2. b3 {[%clk 01:19:11]} {[%emt 00:00:24]} d5 {[%clk 01:28:45]}
{[%emt 00:00:07]} 3. Bb2 {[%clk 01:19:23]} {[%emt 00:00:17]} dxe4 {[%clk
01:27:24]} {[%emt 00:01:51]} 4. Nc3 {[%clk 01:19:38]} {[%emt 00:00:15]} Nf6
{[%clk 01:27:30]} {[%emt 00:00:24]} 5. Nge2 {[%clk 01:19:46]} {[%emt 00:00:22]}
Bf5 {[%clk 01:27:16]} {[%emt 00:00:44]} 6. Ng3 {[%clk 01:19:52]} {[%emt
00:00:23]} Bg6 {[%clk 01:27:43]} {[%emt 00:00:04]} 7. Qe2 {[%clk 01:20:07]}
{[%emt 00:00:15]} Qd4 {[%clk 01:17:22]} {[%emt 00:10:50]} 8. Rb1 {[%clk
01:18:07]} {[%emt 00:02:31]} Nbd7 {[%clk 01:15:53]} {[%emt 00:01:58]} 9. Ncxe4
{[%clk 01:16:21]} {[%emt 00:02:16]} Qd5 {[%clk 01:15:27]} {[%emt 00:00:40]} 10.
d3 {[%clk 01:12:19]} {[%emt 00:04:48]} Nxe4 {[%clk 01:15:02]} {[%emt 00:00:55]}
11. Nxe4 {[%clk 01:11:52]} {[%emt 00:00:57]} Bxe4 {[%clk 01:14:27]} {[%emt
00:01:06]} 12. dxe4 {[%clk 01:07:13]} {[%emt 00:05:09]} Qa5+ {[%clk 01:12:12]}
{[%emt 00:02:45]} 13. Qd2 {[%clk 01:06:48]} {[%emt 00:00:54]} Qxd2+ {[%clk
01:11:09]} {[%emt 00:01:35]} 14. Kxd2 {[%clk 01:07:14]} {[%emt 00:00:03]} O-O-O
{[%clk 01:11:37]} {[%emt 00:00:03]} 15. Bd3 {[%clk 01:05:47]} {[%emt 00:01:56]}
e5 {[%clk 01:05:56]} {[%emt 00:06:11]} 16. Rbd1 {[%clk 01:03:02]} {[%emt
00:03:14]} f6 {[%clk 01:06:01]} {[%emt 00:00:25]} 17. Kc1 {[%clk 01:01:55]}
{[%emt 00:01:38]} Nc5 {[%clk 01:05:34]} {[%emt 00:00:56]} 18. f3 {[%clk
01:01:44]} {[%emt 00:00:41]} Nxd3+ {[%clk 01:04:33]} {[%emt 00:01:32]} 19. Rxd3
{[%clk 01:01:57]} {[%emt 00:00:16]} Rxd3 {[%clk 01:04:48]} {[%emt 00:00:15]} 20.
cxd3 {[%clk 01:02:24]} {[%emt 00:00:03]} Bc5 {[%clk 01:05:17]} {[%emt
00:00:02]} 21. Kc2 {[%clk 01:01:35]} {[%emt 00:01:19]} Rd8 {[%clk 01:05:40]}
{[%emt 00:00:06]} 22. Rd1 {[%clk 00:59:54]} {[%emt 00:02:11]} Rd7 {[%clk
01:00:39]} {[%emt 00:05:31]} 23. Bc3 {[%clk 00:58:09]} {[%emt 00:02:15]} Kd8
{[%clk 00:58:59]} {[%emt 00:02:10]} 24. Kd2 {[%clk 00:57:55]} {[%emt 00:00:44]}
Ke7 {[%clk 00:59:10]} {[%emt 00:00:19]} 25. Ke2 {[%clk 00:57:56]} {[%emt
00:00:29]} Kf7 {[%clk 00:59:20]} {[%emt 00:00:20]} 26. Rc1 {[%clk 00:56:43]}
{[%emt 00:01:44]} Bb6 {[%clk 00:58:44]} {[%emt 00:01:05]} 27. Rd1 {[%clk
00:55:46]} {[%emt 00:01:28]} h5 {[%clk 00:52:04]} {[%emt 00:07:09]} 28. Be1
{[%clk 00:53:44]} {[%emt 00:02:32]} Bd4 {[%clk 00:51:05]} {[%emt 00:01:29]} 29.
Bf2 {[%clk 00:53:58]} {[%emt 00:00:16]} c5 {[%clk 00:49:10]} {[%emt 00:02:26]}
30. Bxd4 {[%clk 00:52:51]} {[%emt 00:01:37]} Rxd4 {[%clk 00:49:23]} {[%emt
00:00:17]} 31. Rc1 {[%clk 00:53:01]} {[%emt 00:00:20]} b6 {[%clk 00:49:51]}
{[%emt 00:00:02]} 32. Rc4 {[%clk 00:53:14]} {[%emt 00:00:16]} Ke6 {[%clk
00:33:49]} {[%emt 00:16:32]} 33. g3 {[%clk 00:50:22]} {[%emt 00:03:22]} Rd7
{[%clk 00:31:10]} {[%emt 00:03:09]} 34. Rc2 {[%clk 00:49:35]} {[%emt 00:01:17]}
a5 {[%clk 00:31:03]} {[%emt 00:00:37]} 35. Kd2 {[%clk 00:47:28]} {[%emt
00:02:37]} Ra7 {[%clk 00:30:20]} {[%emt 00:01:14]} 36. a4 {[%clk 00:47:27]}
{[%emt 00:00:30]} Rd7 {[%clk 00:30:20]} {[%emt 00:00:31]} 37. Rc3 {[%clk
00:47:20]} {[%emt 00:00:37]} f5 {[%clk 00:29:03]} {[%emt 00:01:47]} 38. Ke2
{[%clk 00:43:49]} {[%emt 00:04:00]} g6 {[%clk 00:27:01]} {[%emt 00:02:33]} 39.
Rc1 {[%clk 00:43:24]} {[%emt 00:00:55]} Kf6 {[%clk 00:26:19]} {[%emt 00:01:11]}
40. Rc3 {[%clk 00:43:17]} {[%emt 00:00:38]} Rh7 {[%clk 00:25:05]} {[%emt
00:01:43]} 41. h3 {[%clk 00:42:47]} {[%emt 00:01:00]} Kg5 {[%clk 00:24:36]}
{[%emt 00:01:00]} 42. exf5 {[%clk 00:41:53]} {[%emt 00:01:23]} gxf5 {[%clk
00:24:23]} {[%emt 00:00:43]} 43. Rc4 {[%clk 00:42:10]} {[%emt 00:00:13]} f4
{[%clk 00:22:46]} {[%emt 00:02:07]} 44. h4+ {[%clk 00:41:57]} {[%emt 00:00:43]}
Kf5 {[%clk 00:23:09]} {[%emt 00:00:07]} 45. gxf4 {[%clk 00:41:33]} {[%emt
00:00:55]} exf4 {[%clk 00:23:37]} {[%emt 00:00:02]} 46. d4 {[%clk 00:41:20]}
{[%emt 00:00:42]} Re7+ {[%clk 00:21:56]} {[%emt 00:02:11]} 47. Kf2 {[%clk
00:41:43]} {[%emt 00:00:06]} cxd4 {[%clk 00:16:37]} {[%emt 00:05:50]} 1/2-1/2